Cogmind - Beta 13 @@@ ROGUE MODE // 2024.06.06 @ 17:23:36 Player: wd Result: Destroyed by G-34 Mercenary with Small Laser Performance ------------- Evolutions (1) 500 Regions Visited (3) 600 Robots Destroyed (25) 125 Value Destroyed (815) 815 Prototype IDs (2) 40 Alien Tech Used (0) 0 Bonus (504) 504 TOTAL SCORE: 2584 Bonus ------- High Alert Combat Kills 11 Follower Combat Kills 493 Cogmind --------- Core Integrity 0/400 Matter 300/300 Energy 29/100 System Corruption 3% Temperature Warm (181) Movement Walking (120) Location -9/Storage Parts ------- > --- POWER (1) -------- (None) > --- PROPULSION (3) --- Aluminum Leg Aluminum Leg Aluminum Leg > --- UTILITY (3) ------ Large Storage Unit Visual Processing Unit Light Armor Plating > --- WEAPON (2) ------- Spread Laser Spread Laser > --- INVENTORY (15) --- Ion Engine Ion Engine Light Nuclear Core Aluminum Leg Aluminum Leg Aluminum Leg Aluminum Leg Aluminum Leg Improved Heat Sink Sensor Array Beam Rifle Assault Rifle Peak State ------------ > --- POWER ------------ Improved Ion Engine > --- PROPULSION ------- Aluminum Leg Aluminum Leg Aluminum Leg > --- UTILITY ---------- Large Storage Unit Visual Processing Unit Light Armor Plating > --- WEAPON ----------- Spread Laser Particle Cannon > --- INVENTORY -------- Light Ion Engine Aluminum Leg Aluminum Leg Wheel Improved Heat Sink Huge Storage Unit Sensor Array Beam Rifle Spread Laser Assault Rifle Grenade Launcher [Rating: 14] Favorites ----------- Power Ion Engine Engine Ion Engine Propulsion Aluminum Leg Leg Aluminum Leg Wheel Wheel Flight Unit Flight Unit Utility Large Storage Unit Storage Large Storage Unit Processor Visual Processing Unit Protection Light Armor Plating Weapon Particle Cannon Energy Gun Medium Laser Energy Cannon Particle Cannon Ballistic Gun Assault Rifle Launcher Grenade Launcher Build | -11 -10 -9 -9 ------- Run | Yrd Mat Mat Sto Slots Evolved 2 | . . 2 . Power . | . . . . Propulsion 1 | . . 1 . Utility 1 | . . 1 . Weapon . | . . . . Parts Attached 31 | 6 6 6 13 Power 3 | 1 . 1 1 Engine 3 | 1 . 1 1 Core . | . . . . Reactor . | . . . . Propulsion 13 | 2 4 1 6 Treads . | . . . . Leg 10 | 2 2 1 5 Wheel 1 | . . . 1 Hover . | . . . . Flight 2 | . 2 . . Utility 5 | 1 1 2 1 Device . | . . . . Storage 2 | 1 1 . . Processor 1 | . . 1 . Hackware . | . . . . Protection 2 | . . 1 1 Artifact . | . . . . Weapon 10 | 2 1 2 5 Energy Gun 6 | 1 . 2 3 Energy Cannon 1 | . . . 1 Ballistic Gun 1 | 1 . . . Ballistic Cannon . | . . . . Launcher 2 | . 1 . 1 Special Weapon . | . . . . Impact Weapon . | . . . . Slashing Weapon . | . . . . Piercing Weapon . | . . . . Special Melee Weapon . | . . . . Unidentified Prototypes . | . . . . Parts Lost 10 | . . 3 7 Power 2 | . . 1 1 Propulsion 3 | . . 2 1 Utility 1 | . . . 1 Weapon 4 | . . . 4 Highest Loss Streak 3 | . . 3 2 To Critical Strikes . | . . . . Average Slot Usage (%) 85 | . 85 79 87 Engine 11 | . 14 10 10 Leg 25 | . 26 18 27 Storage 12 | . 15 15 11 Processor 7 | . . 6 11 Protection 7 | . . 6 10 Energy Gun 9 | . 7 16 7 Energy Cannon 4 | . . . 7 Ballistic Gun 2 | . 14 1 . Launcher 2 | . 6 4 . Naked Turns . | . . . . Heaviest Build 37 | 14 35 36 37 Greatest Support 30 | 20 20 20 30 Greatest Overweight (x) 9 | . 1 9 3 Average Overweight (x) . | . . 1 1 Largest Inventory Capacity 15 | 8 15 15 15 Average Capacity 13 | 7 8 15 15 Most Carried 12 | 4 6 7 12 Average Carried 6 | . 3 5 8 Final Capacity 15 | 8 15 15 15 Final Carried 12 | 1 5 5 12 Class Distribution -------------------- 62% | Mutant 30% | Scavenger-Mutant 7% | Commander-Mutant Dominant Class ---------------- Mutant | -10/Materials Mutant | -9/Materials Scavenger-Mutant | -9/Storage Resources | -11 -10 -9 -9 ----------- Run | Yrd Mat Mat Sto Matter Collected 592 | 206 37 98 251 Remotely . | . . . . Salvage Created 864 | . 128 173 563 Parts 50 | . 11 7 32 Haulers Intercepted . | . . . . Recyclers Shooed . | . . . . Parts Field Recycled . | . . . . Retrieved Matter . | . . . . Parts Self-Destructed . | . . . . Prevented . | . . . . Kills | -11 -10 -9 -9 ------- Run | Yrd Mat Mat Sto Combat Hostiles Destroyed 21 | . 5 4 12 Guns 5 | . 1 2 2 Cannons 10 | . . . 10 AOE 4 | . 4 . . Classes Destroyed 7 | . 5 1 1 Builder 1 | . 1 . . Mechanic 1 | . 1 . . Operator 2 | . 1 1 . Swarmer 3 | . 3 . . Grunt 12 | . 2 3 7 Brawler 1 | . . . 1 Sentry 5 | . . 1 4 Best Kill Streak 4 | . 4 3 3 Combat Bots Only 3 | . 3 3 3 Max Kills in Single Turn 3 | . 3 1 1 Gunslinging . | . . . . Exploded 2 | . 2 . . Melee . | . . . . Uniques/NPCs Destroyed . | . . . . Combat | -11 -10 -9 -9 -------- Run | Yrd Mat Mat Sto Hostile Shots Fired 186 | . 51 30 105 Missed 55 | . 20 6 29 Damage Taken 1797 | . 324 513 960 Core 499 | . 92 236 171 Absorbed by Shields . | . . . . Core Remaining (%) 81 | 100 63 . . Volleys Fired 76 | . 12 21 43 Largest 2 | . 2 2 2 Hottest 133 | . 70 106 133 Shots Fired 110 | . 22 35 53 Gun 71 | . 15 33 23 Cannon 29 | . . . 29 Launcher 10 | . 7 2 1 Special . | . . . . Kinetic 14 | . 12 2 . Thermal 86 | . 3 31 52 Explosive 10 | . 7 2 1 Electromagnetic . | . . . . Robot Hit Streak 9 | . 6 6 9 Robot Miss Streak 5 | . 1 3 5 Penetration Max . | . . . . Secondary Targets . | . . . . Shots Hit Robots 73 | . 11 24 38 Core Hits 46 | . 12 7 27 Critical Kills . | . . . . Critical Parts Destroyed . | . . . . Critical Strikes 4 | . . 4 . Burn 4 | . . 4 . Melee Attacks . | . . . . Impact . | . . . . Slashing . | . . . . Piercing . | . . . . Sneak Attacks . | . . . . Combat Hostiles . | . . . . Follow-up Attacks . | . . . . Damage Inflicted 1618 | . 528 324 766 Guns 648 | . 100 300 248 Cannons 349 | . . . 349 Explosions 601 | . 427 24 150 Melee . | . . . . Ramming 20 | . 1 . 19 Kinetic 63 | . 63 . . Thermal 934 | . 37 300 597 Explosive 601 | . 427 24 150 Electromagnetic . | . . . . Impact . | . . . . Slashing . | . . . . Piercing . | . . . . Highest Corruption 3 | . . . 3 Average Corruption 3 | . . . 3 Corruption Purged . | . . . . Corruption Blocked . | . . . . Effects 8 | . . . 8 Matter Fused 1 | . . . 1 Heat Flow Errors 2 | . . . 2 Energy Discharges 1 | . . . 1 Data Loss (minor) 2 | . . . 2 Misfires 1 | . . . 1 Alerts 1 | . . . 1 Overload Shots . | . . . . Overflow Damage 10 | . 10 . . Projectiles . | . . . . Explosions 10 | . 10 . . Melee . | . . . . Knockbacks . | . . . . Impact . | . . . . Kinetic . | . . . . Secondary . | . . . . Self-Inflicted Damage 17 | . 17 . . Shots 1 | . 1 . . Rammed . | . . . . Targets Rammed 8 | . 1 3 4 Kicked 8 | . 1 3 4 Crushed . | . . . . Highest Temperature 589 | . 21 589 356 Average Temperature 139 | . 9 252 97 Received Heat Transfer 681 | . 102 153 426 Effects 11 | . . 11 . Shutdowns 2 | . . 2 . Energy Bleed 1 | . . 1 . Interference 2 | . . 2 . Damage (minor) 1 | . . 1 . Damage (major) 2 | . . 2 . Damage (core) 3 | . . 3 . Siege Activations . | . . . . Robots Corrupted . | . . . . Combat Hostiles . | . . . . Parts Fried . | . . . . Impact Corruptions . | . . . . Robots Melted 2 | . . 2 . Combat Hostiles 2 | . . 2 . Parts Melted 5 | . . 2 3 Heat Transferred 2458 | . 111 1147 1200 Parts Sabotaged . | . . . . Parts Stolen . | . . . . Parts Stripped . | . . . . Power Chain Reactions . | . . . . Alert | -11 -10 -9 -9 ------- Run | Yrd Mat Mat Sto Peak Influence 608 | . 219 255 608 Initial 107 | . . 92 107 Average 206 | . 60 176 279 Maximum Alert Level 2 | . 1 1 2 Low Security (%) 50 | 100 83 65 29 Level 1 40 | . 16 34 53 Level 2 9 | . . . 17 Level 3 . | . . . . Level 4 . | . . . . Level 5 . | . . . . High Security . | . . . . Max Security . | . . . . Squads Dispatched 9 | . 2 . 7 Investigation 1 | . . . 1 Extermination . | . . . . Reinforcement 4 | . 2 . 2 Assault 2 | . . . 2 Garrison 2 | . . . 2 Intercept . | . . . . Searches Triggered . | . . . . Construction Impeded . | . . . . Haulers Reinforced . | . . . . Active Scanning Responses . | . . . . Cargo Convoy Interrupts . | . . . . Stealth | -11 -10 -9 -9 --------- Run | Yrd Mat Mat Sto Distress Signals 3 | . . . 3 Communications Jammed . | . . . . Distress Signals . | . . . . Times Spotted 59 | . 10 7 42 Peak Tracking Total 9 | . 4 3 9 Tactical Retreats 3 | . . 1 2 Traps | -11 -10 -9 -9 ------- Run | Yrd Mat Mat Sto Traps Triggered . | . . . . Indirectly . | . . . . Trap Hack Attempts . | . . . . Triggered . | . . . . Disarmed . | . . . . Reprogrammed . | . . . . Reused . | . . . . Traps Extracted . | . . . . Installed . | . . . . Triggered . | . . . . Machines | -11 -10 -9 -9 ---------- Run | Yrd Mat Mat Sto Machines Disabled 4 | . 3 . 1 Max in Single Turn 1 | . 1 . 1 Machines Repaired . | . . . . Machines Dismantled . | . . . . Machines Sabotaged . | . . . . Overloaded Fab Kills . | . . . . Hacking | -11 -10 -9 -9 --------- Run | Yrd Mat Mat Sto Machines Accessed 5 | . 2 1 2 Terminals 5 | . 2 1 2 Fabricators . | . . . . Repair Stations . | . . . . Recycling Units . | . . . . Scanalyzers . | . . . . Garrison Access . | . . . . Total Hacks 15 | . 8 5 2 Successful 9 | . 4 3 2 Failed 6 | . 4 2 . Catastrophic . | . . . . Database Lockouts . | . . . . Manual 3 | . . . 3 Terminals 15 | . 8 5 2 Fabricators . | . . . . Repair Stations . | . . . . Recycling Units . | . . . . Scanalyzers . | . . . . Garrison Access . | . . . . Terminal Hacks 9 | . 4 3 2 Prototype ID Bank 1 | . . 1 . Branch Access Points 1 | . . 1 . Dispatch Records 1 | . 1 . . Recall Investigation 1 | . 1 . . Zone Layout 5 | . 2 1 2 Fabricator Hacks . | . . . . Repair Station Hacks . | . . . . Recycling Unit Hacks . | . . . . Scanalyzer . | . . . . Garrison Access Hacks . | . . . . Unauthorized Hacks . | . . . . Terminals . | . . . . Fabricators . | . . . . Repair Stations . | . . . . Recycling Units . | . . . . Scanalyzers . | . . . . Garrison Access . | . . . . Data Cores Recovered 1 | . . 1 . Used . | . . . . Hacking Detections 3 | . 1 1 1 Full Trace Events 1 | . . . 1 Feedback Events . | . . . . Feedback Blocked . | . . . . Robot Schematics Acquired . | . . . . Robots Built . | . . . . Authchips . | . . . . Time . | . . . . Total Robot Build Rating . | . . . . Part Schematics Acquired . | . . . . Parts Built . | . . . . Authchips . | . . . . Time . | . . . . Total Part Build Rating . | . . . . Parts Repaired . | . . . . Time . | . . . . Parts Recycled . | . . . . Recycled Matter . | . . . . Retrieved Matter . | . . . . Retrieved Components . | . . . . Parts Scanalyzed . | . . . . Part Schematics Acquired . | . . . . Parts Damaged . | . . . . Bothacking | -11 -10 -9 -9 ------------ Run | Yrd Mat Mat Sto Used RIF Installer . | . . . . Robots Hacked . | . . . . Non-combat . | . . . . Combat . | . . . . Robot Hacks Applied . | . . . . Relay Couplers Released . | . . . . Fabnet Peak Effective % . | . . . . Robots Rewired . | . . . . Allies Hacked . | . . . . Hacks Repelled . | . . . . Allies | -11 -10 -9 -9 -------- Run | Yrd Mat Mat Sto Total Allies 12 | . . . 12 Largest Group 10 | . . . 10 Highest-Rated Group 88 | . . . 88 Highest-Rated Ally 31 | . . . 31 Total Orders . | . . . . Ally Attacks 117 | . . . 117 Total Damage 1090 | . . . 1090 Kills 18 | . . . 18 Allies Corrupted . | . . . . Allies Melted . | . . . . Intel | -11 -10 -9 -9 ------- Run | Yrd Mat Mat Sto Robot Analysis Total . | . . . . Derelict Logs Recovered . | . . . . Drone Launches . | . . . . Drone Recoveries . | . . . . Exploration | -11 -10 -9 -9 ------------- Run | Yrd Mat Mat Sto Turns Passed 1619 | 64 272 390 893 Spaces Moved 789 | 50 164 151 424 Core 14 | 12 . 2 . Treads . | . . . . Legs 689 | 38 164 149 338 Wheels 86 | . . . 86 Hover . | . . . . Flight . | . . . . Fastest Speed 50 | 50 120 190 110 Average Speed 167 | 103 125 212 174 Slowest Speed 500 | 120 190 500 330 Overloaded Moves . | . . . . Propulsion Burnouts . | . . . . Robots Hopped . | . . . . Cave-ins Triggered . | . . . . Exploration Rate (%) 29 | 3 28 17 71 Regions Visited 3 Branch Regions 1 Pre-discovered Areas . | . . . . Known Exits Taken 1 | . . 1 . Unknown Exits Taken 2 | 1 1 . . Scrap Searched . | . . . . Spaces Dug . | . . . . Terrain Destroyed 62 | . 33 22 7 Melee . | . . . . Projectile . | . . . . AOE 62 | . 33 22 7 Terrain Rammed . | . . . . Walls Destroyed . | . . . . Machines Disabled . | . . . . Actions | -11 -10 -9 -9 --------- Run | Yrd Mat Mat Sto Total 980 | 62 212 184 522 Wait 22 | . 17 . 5 Move 786 | 49 163 150 424 Hop . | . . . . Pick Up 39 | 7 7 3 22 Fast Attach . | . . . . Attach 24 | 6 5 4 9 Detach 6 | . 4 1 1 Swap 7 | . 1 2 4 Drop 9 | . 2 . 7 Fire 76 | . 12 21 43 Melee . | . . . . Ram . | . . . . Kick 8 | . 1 3 4 Crush . | . . . . Escape Stasis . | . . . . Rewire 3 | . . . 3 Trap . | . . . . Miscellaneous . | . . . . Route ------- -11/Scrapyard -10/Materials -9/Materials (discovered 2 exits: Min / *Sto) -9/Storage History --------- Turn | Location | Event 18 | -11/Scrapyard | Discovered new exit (range 15) 65 | -11/Scrapyard | Entered Materials 192 | -10/Materials | Discovered new exit (range 10) 315 | -10/Materials | Build established: Mutant 337 | -10/Materials | Entered another Materials area 337 | -9/Materials | Evolved 2 slots: Propulsion x1, Utility x1 399 | -9/Materials | Discovered new exit (range 16) 405 | -9/Materials | Identified exit to Mines 405 | -9/Materials | Identified exit to Storage 608 | -9/Materials | Core integrity fell below 50% 701 | -9/Materials | Lost 3 parts (1p2n) 727 | -9/Materials | Entered Storage 1176 | -9/Storage | Core integrity fell below 20% 1314 | -9/Storage | Build established: Scavenger-Mutant 1409 | -9/Storage | Met a pair of Derelict thieves 1441 | -9/Storage | Garrison activated, responded to threat 1458 | -9/Storage | Assisted by bots powering up and referring to "LRC-V3" 1512 | -9/Storage | Lost 5 allies 1620 | -9/Storage | Destroyed by G-34 Mercenary with Small Laser Last Messages --------------- K-01 Serf collects debris. R-06 Scavenger collects Heat Sink. W-16 Scout sends out distress signal. R-06 Scavenger collects Heat Sink. K-01 Serf cleans the Compression Vault. Destroyed Lgt. Ion Engine. Mercenary 2f destroyed. Mercenary 2d suffers critical hit (Smash). Mercenary 2d destroyed. B-36 Bruiser destroyed. K-01 Serf collects debris. Acquired 25 matter. K-01 Serf collects debris. Mercenary 2g destroyed. Imp. Ion Engine destroyed. R-06 Scavenger collects Lgt. Treads. Y-45 Defender destroyed. System corrupted: FCS attempts to trigger Spread Laser. System corrupted: Spread Laser misfires. Map ----- +----------------------------------------------------+ | | | | | | | | | | | ????????????????????????????????????????????? | | ??????????????????????????????????#######???? | | ????????????????????#?????????????T# #???? | | ???????????????????? ????????????? " #???? | | ???????????????????? ????????????? # #???? | | ?????????????######? ????????????? ######?### | | ?????????????? ? ?????????????+######## | | ?????????????? ? ????????????? | | ??????????????? ? ????????????? | | ??????????????? #+????????????? | | ???????????????? #????????????######### | | ???????????????? #????????????#???????## | | ????????????????? #????????????########## | | ????????????????? #???????????? # | | ?????????????????? +????????????""" """" # | | ?????????????????? *[#????????????""" """" #! | | ???????????????????[=#????????????""" """" + | | ???????????????????a%!????????????""" """" #* | | ???????????????????#[#???????????? #= | | ?????????????#?????#!#??????????? #% | | ?????????#####/#####@#???????????#########+#[ | | ?????????# #*#???????????????##??#=%% | | ??????????? #%#####################=*= | | ?????????? """" #g/ % %[%/ | | ?????????T """" +== %% = | | ?????????" """" # %% % ^! | | ?????????# [*%"""" ###+#+########## """"" | | ?????????? !!= ##[ ?????## """"" % | | ????????? *%= ##%""" #?????## """"" | | ?????????###"="######=""" #??????# """"" | | ???????????#"R"?????# """ #??????# | | ???????????#""??????# #??????# | | ????????????????????# """ #??????# ^ | | ????????????????????# """ "??????+ ^ | | ????????????????????" ?"" T??????#"" ^ | | ???????????????????? ??? "#?????#"T [ | | ????????????????????" ??? ##?????#"" | | ????????????????????# ??? #??????+ | | ????????????????????# ??? #??????# | | ?????????????????????????? #??????# ###### | | ?????????????????????????? #??????# # | | ??????????????????????????????????# # | | ??????????????????????????????????# # | | ??????????????????????????????????# # | | ??????????????????????????????????# # | +----------------------------------------------------+ Best States ------------- Heat Dissipation 28 Energy Generation 12 Energy Capacity 265 Matter Stores 300 Matter Capacity 300 Sight Range 18 Terrain Scan Density 10 Armor Coverage 150 Evasion (%) 55 Item Schematics ----------------- None Robot Schematics ------------------ None Fabricated ------------ Nothing Alien Tech Used ----------------- None Achievements -------------- None Challenges ------------ None Game ------ Seed MakeshiftStormPlating Manual? 0 Play Time 00:21:46 Cumulative 10.8 hours Start 2024.06.06 @ 16:59:41 End 2024.06.06 @ 17:23:36 Sessions 1 Manual Loads 0 Difficulty Rogue Special Mode None Game No. 14 Rogue 14 Adventurer 0 Explorer 0 Win Type - Total 0 Types 0/0/0/0/0/0/0/0/0 Lore% 6 Gallery% 11 Achievement% 14 Wizard Run 0 Options --------- Layout 1 ASCII 0 Keyboard 1 Movement Numpad Keybinds 0 Fullscreen 1 Font 32/SmallcapsGlow Map View 50x35 Zoom Use 0% Tactical HUD 0 Map Filters NONE Filters NONE Steam 1 RUN: e374305d-479d-4345-9224-143ec82d1e16